[Event "GrandPrix_30.05"]
[Site "Chess.com"]
[Date "2020.05.30"]
[Round "3"]
[White "chess_big_master"]
[Black "jacky72"]
[Result "0-1"]
[WhiteElo "2030"]
[BlackElo "2259"]
[TimeControl "600+2"]
[EndTime "9:24:28 PDT"]
[Termination "jacky72 won by resignation"]

1. d4 {[%clk 0:10:01.9]} 1... Nf6 {[%clk 0:10:00.6]} 2. Nf3 {[%clk 0:10:02.2]}
2... g6 {[%clk 0:10:01.3]} 3. g3 {[%clk 0:10:02.9]} 3... Bg7 {[%clk 0:10:02.5]}
4. Bg2 {[%clk 0:10:04.2]} 4... O-O {[%clk 0:10:04.4]} 5. O-O {[%clk 0:10:05.2]}
5... d6 {[%clk 0:10:06.1]} 6. b3 {[%clk 0:10:05.8]} 6... a5 {[%clk 0:10:02.5]}
7. Bb2 {[%clk 0:10:06.3]} 7... a4 {[%clk 0:10:03.3]} 8. c4 {[%clk 0:10:07.3]}
8... axb3 {[%clk 0:09:56.5]} 9. axb3 {[%clk 0:10:09.2]} 9... Rxa1 {[%clk
0:09:56.3]} 10. Bxa1 {[%clk 0:10:11.1]} 10... Nc6 {[%clk 0:09:57.9]} 11. d5
{[%clk 0:09:42.9]} 11... Nb4 {[%clk 0:09:40.8]} 12. Nd4 {[%clk 0:09:24.6]} 12...
Bd7 {[%clk 0:09:30.2]} 13. Nc3 {[%clk 0:09:20.4]} 13... c5 {[%clk 0:09:27.8]}
14. dxc6 {[%clk 0:09:17.1]} 14... bxc6 {[%clk 0:09:25.8]} 15. Qd2 {[%clk
0:08:55]} 15... Qc7 {[%clk 0:08:56.7]} 16. Ne4 {[%clk 0:08:14.1]} 16... Nxe4
{[%clk 0:08:52.6]} 17. Bxe4 {[%clk 0:08:14.5]} 17... Qb6 {[%clk 0:08:41.4]} 18.
Bc3 {[%clk 0:07:24.3]} 18... c5 {[%clk 0:08:39.3]} 19. Nf3 {[%clk 0:07:01.8]}
19... Bxc3 {[%clk 0:08:24]} 20. Qxc3 {[%clk 0:07:03.7]} 20... Nc6 {[%clk
0:08:25.2]} 21. Ra1 {[%clk 0:06:50.2]} 21... Rb8 {[%clk 0:08:23.9]} 22. Bc2
{[%clk 0:06:39.9]} 22... Nb4 {[%clk 0:08:02.8]} 23. Bb1 {[%clk 0:06:28.9]} 23...
Bc6 {[%clk 0:07:58.5]} 24. h4 {[%clk 0:06:10.6]} 24... Bxf3 {[%clk 0:07:23.9]}
25. Qxf3 {[%clk 0:05:50.9]} 25... Nc6 {[%clk 0:07:22.5]} 26. h5 {[%clk
0:04:47.8]} 26... Ne5 {[%clk 0:06:46.1]} 27. Qe4 {[%clk 0:02:59.8]} 27... Qxb3
{[%clk 0:06:42.4]} 28. Bd3 {[%clk 0:02:59.3]} 28... Qb7 {[%clk 0:05:44.2]} 29.
Rb1 {[%clk 0:02:13.3]} 29... Qc8 {[%clk 0:05:40.1]} 30. Rxb8 {[%clk 0:02:02.1]}
30... Qxb8 {[%clk 0:05:42]} 31. h6 {[%clk 0:02:03.2]} 31... Qf8 {[%clk
0:05:30.5]} 32. Qh4 {[%clk 0:00:44.2]} 32... f5 {[%clk 0:05:18.3]} 33. f3 {[%clk
0:00:41.9]} 33... Nf7 {[%clk 0:05:15.6]} 34. g4 {[%clk 0:00:39.2]} 34... fxg4
{[%clk 0:05:06.8]} 35. fxg4 {[%clk 0:00:30.1]} 35... Nxh6 {[%clk 0:05:04.9]} 36.
Be4 {[%clk 0:00:28.4]} 36... e6 {[%clk 0:04:49.3]} 37. Bf3 {[%clk 0:00:20.2]}
37... Qf4 {[%clk 0:04:38.2]} 38. Qd8+ {[%clk 0:00:21.2]} 38... Kg7 {[%clk
0:04:39.5]} 39. Qe7+ {[%clk 0:00:20]} 39... Nf7 {[%clk 0:04:30.2]} 40. Qxe6
{[%clk 0:00:21.4]} 40... Qe5 {[%clk 0:04:28.7]} 41. Qd7 {[%clk 0:00:18.4]} 41...
Qd4+ {[%clk 0:04:29]} 42. Kg2 {[%clk 0:00:18.4]} 42... Qxc4 {[%clk 0:04:30.5]}
43. Qb7 {[%clk 0:00:18.5]} 43... Qf4 {[%clk 0:04:22.5]} 44. Qd7 {[%clk
0:00:15.6]} 44... c4 {[%clk 0:04:21.4]} 45. Bd5 {[%clk 0:00:15.8]} 45... c3
{[%clk 0:04:16]} 46. Bxf7 {[%clk 0:00:08.3]} 46... Qxf7 {[%clk 0:04:17.9]} 47.
Qxd6 {[%clk 0:00:09.6]} 47... Qf6 {[%clk 0:03:54.5]} 48. Qc7+ {[%clk 0:00:09.5]}
48... Kh6 {[%clk 0:03:55.7]} 49. Qc5 {[%clk 0:00:07]} 49... Qf4 {[%clk
0:03:34.4]} 50. Kh3 {[%clk 0:00:02.8]} 50... Qf1+ {[%clk 0:03:17]} 51. Kg3
{[%clk 0:00:03.4]} 51... Qe1+ {[%clk 0:03:17]} 52. Kh3 {[%clk 0:00:04.5]} 52...
Qf1+ {[%clk 0:02:51.9]} 53. Kg3 {[%clk 0:00:05.8]} 53... Qf6 {[%clk 0:02:52.9]}
54. Kh3 {[%clk 0:00:05.3]} 54... g5 {[%clk 0:02:30.8]} 55. Kg2 {[%clk
0:00:06.3]} 55... Kg6 {[%clk 0:02:29.2]} 56. Qc4 {[%clk 0:00:05.3]} 56... h5
{[%clk 0:02:17.6]} 57. Qd3+ {[%clk 0:00:03]} 57... Kh6 {[%clk 0:02:15.4]} 58.
gxh5 {[%clk 0:00:04.9]} 58... Qc6+ {[%clk 0:02:08.2]} 59. Kf2 {[%clk 0:00:02.6]}
59... c2 {[%clk 0:02:08.7]} 60. Qd4 {[%clk 0:00:02.9]} 60... Kxh5 {[%clk
0:02:00.7]} 61. Qh8+ {[%clk 0:00:03.9]} 61... Kg4 {[%clk 0:01:58.7]} 62. Qd4+
{[%clk 0:00:04.4]} 62... Kf5 {[%clk 0:01:59.5]} 63. Qd3+ {[%clk 0:00:04.4]}
63... Kf6 {[%clk 0:01:56.1]} 64. Qd4+ {[%clk 0:00:05]} 64... Kg6 {[%clk
0:01:52]} 65. Qd3+ {[%clk 0:00:06.2]} 65... Kh6 {[%clk 0:01:53.3]} 66. Qh3+
{[%clk 0:00:06.9]} 66... Kg7 {[%clk 0:01:54.4]} 67. Qf5 {[%clk 0:00:02.8]} 67...
Qf6 {[%clk 0:01:53.1]} 68. Qxf6+ {[%clk 0:00:02]} 68... Kxf6 {[%clk 0:01:55]}
69. Ke3 {[%clk 0:00:03.3]} 69... c1=Q+ {[%clk 0:01:55.3]} 0-1

[Event "GrandPrix_30.05"]
[Site "Chess.com"]
[Date "2020.05.30"]
[Round "3"]
[White "Bengalas"]
[Black "AlexVanGog"]
[Result "1/2-1/2"]
[WhiteElo "2227"]
[BlackElo "2475"]
[TimeControl "600+2"]
[EndTime "9:24:30 PDT"]
[Termination "Game drawn by stalemate"]

1. d4 {[%clk 0:10:01.9]} 1... Nf6 {[%clk 0:10:00]} 2. c4 {[%clk 0:10:02.3]} 2...
g6 {[%clk 0:10:00.5]} 3. Nc3 {[%clk 0:10:02.9]} 3... d5 {[%clk 0:10:01.5]} 4.
Nf3 {[%clk 0:10:03.6]} 4... Bg7 {[%clk 0:10:01.9]} 5. Bf4 {[%clk 0:10:04.5]}
5... O-O {[%clk 0:09:51.8]} 6. e3 {[%clk 0:10:04.5]} 6... c5 {[%clk 0:09:33.4]}
7. dxc5 {[%clk 0:10:05]} 7... Ne4 {[%clk 0:09:24.6]} 8. Rc1 {[%clk 0:10:05.6]}
8... Qa5 {[%clk 0:08:52.6]} 9. cxd5 {[%clk 0:09:59]} 9... Nxc3 {[%clk
0:08:52.6]} 10. Qd2 {[%clk 0:09:55.9]} 10... Nd7 {[%clk 0:08:51.4]} 11. bxc3
{[%clk 0:09:55.8]} 11... Nxc5 {[%clk 0:08:51.6]} 12. Be5 {[%clk 0:08:08.3]}
12... Bxe5 {[%clk 0:08:24]} 13. Nxe5 {[%clk 0:08:07.8]} 13... Rd8 {[%clk
0:08:18.8]} 14. Bc4 {[%clk 0:06:12.8]} 14... e6 {[%clk 0:07:58.6]} 15. O-O
{[%clk 0:05:25.1]} 15... exd5 {[%clk 0:07:57.6]} 16. Bb3 {[%clk 0:05:26.7]}
16... Qc7 {[%clk 0:07:44.6]} 17. Nd3 {[%clk 0:05:01.8]} 17... Nxd3 {[%clk
0:07:24.6]} 18. Qxd3 {[%clk 0:05:02.9]} 18... Be6 {[%clk 0:07:26.2]} 19. h4
{[%clk 0:04:50.5]} 19... h5 {[%clk 0:07:23.9]} 20. Qd4 {[%clk 0:04:49.2]} 20...
b6 {[%clk 0:07:20.7]} 21. Rfd1 {[%clk 0:04:47.6]} 21... Rac8 {[%clk 0:07:21.2]}
22. Qf6 {[%clk 0:04:39.5]} 22... Rd6 {[%clk 0:07:18.2]} 23. Qd4 {[%clk
0:04:20.8]} 23... Rc6 {[%clk 0:06:28.5]} 24. Bxd5 {[%clk 0:04:17.1]} 24... Bxd5
{[%clk 0:06:30.4]} 25. Qxd5 {[%clk 0:04:17.8]} 25... Rxc3 {[%clk 0:06:31.4]} 26.
Rxc3 {[%clk 0:04:07.5]} 26... Qxc3 {[%clk 0:06:33.3]} 27. g3 {[%clk 0:03:48.1]}
27... Kg7 {[%clk 0:06:25]} 28. Qd7 {[%clk 0:02:10.8]} 28... Rc7 {[%clk
0:06:21.2]} 29. Qd8 {[%clk 0:02:07.6]} 29... Rc5 {[%clk 0:06:17.4]} 30. Qd4+
{[%clk 0:01:37.7]} 30... Qxd4 {[%clk 0:06:17]} 31. Rxd4 {[%clk 0:01:39.2]} 31...
Ra5 {[%clk 0:06:17.3]} 32. a4 {[%clk 0:01:35.5]} 32... Kf6 {[%clk 0:06:18.4]}
33. Kg2 {[%clk 0:01:33.4]} 33... Ke6 {[%clk 0:06:18.7]} 34. Kf3 {[%clk
0:01:32.7]} 34... Rd5 {[%clk 0:06:16.7]} 35. Rc4 {[%clk 0:01:31.2]} 35... Rf5+
{[%clk 0:06:12]} 36. Ke2 {[%clk 0:01:30.8]} 36... Kd6 {[%clk 0:06:12.8]} 37. e4
{[%clk 0:01:27.4]} 37... Rc5 {[%clk 0:06:11.2]} 38. Rd4+ {[%clk 0:01:28.5]}
38... Ke6 {[%clk 0:06:07.5]} 39. Kf3 {[%clk 0:01:18.4]} 39... Rc3+ {[%clk
0:05:59.3]} 40. Kf4 {[%clk 0:01:18.1]} 40... f6 {[%clk 0:05:57.1]} 41. Rb4
{[%clk 0:00:30.9]} 41... Ra3 {[%clk 0:05:45.2]} 42. Rd4 {[%clk 0:00:29.3]} 42...
Rb3 {[%clk 0:05:37.3]} 43. Rc4 {[%clk 0:00:26.1]} 43... Kd6 {[%clk 0:05:26.2]}
44. Rd4+ {[%clk 0:00:26.9]} 44... Kc5 {[%clk 0:04:58.5]} 45. Rd5+ {[%clk
0:00:27.4]} 45... Kb4 {[%clk 0:04:57.5]} 46. Rd6 {[%clk 0:00:17.4]} 46... Kxa4
{[%clk 0:04:52.5]} 47. Rxf6 {[%clk 0:00:18.3]} 47... Rb2 {[%clk 0:04:46.7]} 48.
f3 {[%clk 0:00:15.9]} 48... a5 {[%clk 0:04:44.6]} 49. e5 {[%clk 0:00:16.2]}
49... Kb5 {[%clk 0:04:42.1]} 50. Rxg6 {[%clk 0:00:13.7]} 50... a4 {[%clk
0:04:41.4]} 51. Kf5 {[%clk 0:00:12.2]} 51... a3 {[%clk 0:04:41.8]} 52. Rg8
{[%clk 0:00:12.9]} 52... Kb4 {[%clk 0:03:44.5]} 53. Ra8 {[%clk 0:00:12]} 53...
b5 {[%clk 0:03:27.5]} 54. e6 {[%clk 0:00:12.9]} 54... Re2 {[%clk 0:03:28.3]} 55.
Kf6 {[%clk 0:00:13.4]} 55... a2 {[%clk 0:03:28.9]} 56. e7 {[%clk 0:00:12.4]}
56... Kb3 {[%clk 0:03:29.3]} 57. f4 {[%clk 0:00:12.6]} 57... b4 {[%clk
0:03:26.6]} 58. f5 {[%clk 0:00:12.2]} 58... Kb2 {[%clk 0:03:27]} 59. Kf7 {[%clk
0:00:11.1]} 59... b3 {[%clk 0:03:26]} 60. e8=Q {[%clk 0:00:11]} 60... Rxe8
{[%clk 0:03:26.6]} 61. Kxe8 {[%clk 0:00:12.1]} 61... a1=Q {[%clk 0:02:28.6]} 62.
Rxa1 {[%clk 0:00:11.9]} 62... Kxa1 {[%clk 0:02:30.5]} 63. f6 {[%clk 0:00:13.3]}
63... b2 {[%clk 0:02:32.4]} 64. f7 {[%clk 0:00:14.5]} 64... b1=Q {[%clk
0:02:34.3]} 65. f8=Q {[%clk 0:00:15.1]} 65... Qe1+ {[%clk 0:02:24.4]} 66. Qe7
{[%clk 0:00:11.8]} 66... Qxg3 {[%clk 0:02:23]} 67. Qg5 {[%clk 0:00:05.6]} 67...
Qf3 {[%clk 0:02:15.2]} 68. Ke7 {[%clk 0:00:05.1]} 68... Kb1 {[%clk 0:02:13.2]}
69. Ke6 {[%clk 0:00:05.2]} 69... Kc2 {[%clk 0:02:08.8]} 70. Qf5+ {[%clk
0:00:06.1]} 70... Qxf5+ {[%clk 0:02:09.7]} 71. Kxf5 {[%clk 0:00:07.7]} 71... Kd3
{[%clk 0:02:11.4]} 72. Kg5 {[%clk 0:00:08.7]} 72... Ke4 {[%clk 0:02:13.3]} 73.
Kxh5 {[%clk 0:00:10]} 73... Kf5 {[%clk 0:02:15.2]} 74. Kh6 {[%clk 0:00:11.5]}
74... Kf6 {[%clk 0:02:17.1]} 75. Kh7 {[%clk 0:00:12.1]} 75... Kf7 {[%clk
0:02:19]} 76. h5 {[%clk 0:00:13.3]} 76... Kf8 {[%clk 0:02:20.9]} 77. h6 {[%clk
0:00:14.6]} 77... Kf7 {[%clk 0:02:22.8]} 78. Kh8 {[%clk 0:00:15.8]} 78... Kf8
{[%clk 0:02:24.7]} 79. h7 {[%clk 0:00:17.3]} 79... Kf7 {[%clk 0:02:26.6]}
1/2-1/2

[Event "GrandPrix_30.05"]
[Site "Chess.com"]
[Date "2020.05.30"]
[Round "3"]
[White "arminmusovic"]
[Black "chessfreak35"]
[Result "1-0"]
[WhiteElo "2281"]
[BlackElo "2424"]
[TimeControl "600+2"]
[EndTime "9:24:35 PDT"]
[Termination "arminmusovic won by resignation"]

1. a3 {[%clk 0:10:01.9]} 1... g6 {[%clk 0:10:00.2]} 2. Nc3 {[%clk 0:10:01.8]}
2... Bg7 {[%clk 0:10:01.7]} 3. e4 {[%clk 0:10:03.4]} 3... e5 {[%clk 0:09:58.7]}
4. Nf3 {[%clk 0:10:04.2]} 4... Nc6 {[%clk 0:09:59.4]} 5. Bc4 {[%clk 0:10:05.1]}
5... Nge7 {[%clk 0:09:56.2]} 6. Ba2 {[%clk 0:10:06.2]} 6... d6 {[%clk
0:09:53.7]} 7. h3 {[%clk 0:10:06.9]} 7... O-O {[%clk 0:09:52.2]} 8. O-O {[%clk
0:10:07.5]} 8... h6 {[%clk 0:09:49.9]} 9. d3 {[%clk 0:10:06.1]} 9... Kh7 {[%clk
0:09:50.8]} 10. Nh2 {[%clk 0:09:57.8]} 10... f5 {[%clk 0:09:47.8]} 11. f4 {[%clk
0:09:59]} 11... Bd7 {[%clk 0:08:05]} 12. Be3 {[%clk 0:09:42.3]} 12... Qe8 {[%clk
0:07:35.3]} 13. Qd2 {[%clk 0:08:48.2]} 13... fxe4 {[%clk 0:07:11.5]} 14. dxe4
{[%clk 0:08:45.5]} 14... exf4 {[%clk 0:07:08.1]} 15. Bxf4 {[%clk 0:08:36.9]}
15... g5 {[%clk 0:07:02.9]} 16. Be3 {[%clk 0:08:07.4]} 16... Qg6 {[%clk
0:06:49.6]} 17. Nd5 {[%clk 0:07:23.1]} 17... Nxd5 {[%clk 0:06:32.8]} 18. exd5
{[%clk 0:07:23.8]} 18... Ne5 {[%clk 0:06:20.4]} 19. c4 {[%clk 0:07:07.5]} 19...
Kh8 {[%clk 0:06:19.9]} 20. Bd4 {[%clk 0:06:50.7]} 20... Qd3 {[%clk 0:06:07.9]}
21. Rad1 {[%clk 0:06:40]} 21... Rxf1+ {[%clk 0:05:58.7]} 22. Nxf1 {[%clk
0:06:39.6]} 22... Nf3+ {[%clk 0:05:55.8]} 23. gxf3 {[%clk 0:06:38.8]} 23...
Bxd4+ {[%clk 0:05:56.7]} 24. Kg2 {[%clk 0:06:37.3]} 24... Qxd2+ {[%clk
0:05:57.5]} 25. Rxd2 {[%clk 0:06:37.7]} 25... Be5 {[%clk 0:05:48.2]} 26. Re2
{[%clk 0:06:13.2]} 26... Re8 {[%clk 0:05:19.9]} 27. Bb1 {[%clk 0:06:00.9]} 27...
Kg7 {[%clk 0:04:52.6]} 28. Ne3 {[%clk 0:05:36.7]} 28... Bf4 {[%clk 0:02:32.4]}
29. Nf5+ {[%clk 0:05:27.6]} 29... Kf6 {[%clk 0:02:33.4]} 30. Rxe8 {[%clk
0:05:19.1]} 30... Bxe8 {[%clk 0:02:35.3]} 31. Nxh6 {[%clk 0:04:52.7]} 31... Ke5
{[%clk 0:02:25.5]} 32. b3 {[%clk 0:02:44.9]} 32... Kd4 {[%clk 0:02:21]} 33. Nf5+
{[%clk 0:02:45.8]} 33... Kc3 {[%clk 0:02:10]} 34. Ng7 {[%clk 0:02:46.9]} 34...
Bf7 {[%clk 0:01:29.2]} 35. Ne6 {[%clk 0:02:46.3]} 35... Kxb3 {[%clk 0:01:26.6]}
36. h4 {[%clk 0:02:35.5]} 36... Kxc4 {[%clk 0:00:46.6]} 37. hxg5 {[%clk
0:02:34.4]} 37... Bxe6 {[%clk 0:00:44.5]} 38. dxe6 {[%clk 0:02:16.6]} 38... Bxg5
{[%clk 0:00:45.5]} 39. f4 {[%clk 0:02:06.5]} 39... Be7 {[%clk 0:00:31.3]} 40.
Kf3 {[%clk 0:02:00.8]} 40... d5 {[%clk 0:00:30.6]} 41. Kg4 {[%clk 0:01:41.1]}
41... d4 {[%clk 0:00:26.7]} 42. Kf5 {[%clk 0:01:34.3]} 42... d3 {[%clk
0:00:11.3]} 43. Kg6 {[%clk 0:01:35.4]} 43... d2 {[%clk 0:00:06.4]} 44. Bc2
{[%clk 0:01:36.6]} 44... Kd5 {[%clk 0:00:07.8]} 45. Kf7 {[%clk 0:01:24]} 45...
Bh4 {[%clk 0:00:04.2]} 46. e7 {[%clk 0:01:15.6]} 46... Bxe7 {[%clk 0:00:04.4]}
47. Kxe7 {[%clk 0:01:17.5]} 47... d1=Q {[%clk 0:00:03.4]} 48. Bxd1 {[%clk
0:01:17.8]} 48... Ke4 {[%clk 0:00:05.3]} 49. Bf3+ {[%clk 0:01:01.3]} 49... Kxf4
{[%clk 0:00:05.7]} 50. Bxb7 {[%clk 0:01:02.2]} 50... Ke5 {[%clk 0:00:06.9]} 51.
Bc6 {[%clk 0:00:43.1]} 51... Kd4 {[%clk 0:00:07.1]} 52. Kd7 {[%clk 0:00:41.9]}
52... Kc4 {[%clk 0:00:04.5]} 53. Kxc7 {[%clk 0:00:41.3]} 53... a5 {[%clk
0:00:06.1]} 54. a4 {[%clk 0:00:42]} 54... Kc5 {[%clk 0:00:07.2]} 55. Bb5 {[%clk
0:00:42.1]} 1-0

[Event "GrandPrix_30.05"]
[Site "Chess.com"]
[Date "2020.05.30"]
[Round "3"]
[White "BogdanBelyakov89"]
[Black "Sam_ChessMood"]
[Result "1/2-1/2"]
[WhiteElo "2298"]
[BlackElo "2527"]
[TimeControl "600+2"]
[EndTime "9:24:37 PDT"]
[Termination "Game drawn by agreement"]

1. e4 {[%clk 0:10:01.9]} 1... c5 {[%clk 0:09:56.8]} 2. c3 {[%clk 0:10:01.8]}
2... d5 {[%clk 0:09:50]} 3. exd5 {[%clk 0:10:03.7]} 3... Qxd5 {[%clk 0:09:51.2]}
4. Nf3 {[%clk 0:10:03.1]} 4... g6 {[%clk 0:09:46]} 5. Na3 {[%clk 0:10:02.6]}
5... Bg7 {[%clk 0:09:43.7]} 6. Bc4 {[%clk 0:10:02.6]} 6... Qd8 {[%clk
0:09:28.8]} 7. Qb3 {[%clk 0:09:03.9]} 7... e6 {[%clk 0:08:54.3]} 8. d4 {[%clk
0:08:34.5]} 8... cxd4 {[%clk 0:08:32.8]} 9. Nxd4 {[%clk 0:08:32.6]} 9... Nf6
{[%clk 0:08:12.9]} 10. O-O {[%clk 0:08:05]} 10... O-O {[%clk 0:08:11.6]} 11. Rd1
{[%clk 0:08:05.4]} 11... Qe7 {[%clk 0:08:00.8]} 12. Bg5 {[%clk 0:07:35.1]} 12...
Nbd7 {[%clk 0:07:54.5]} 13. Re1 {[%clk 0:07:08.3]} 13... Nc5 {[%clk 0:05:55.1]}
14. Qc2 {[%clk 0:06:47.2]} 14... Bd7 {[%clk 0:05:33.3]} 15. b4 {[%clk
0:05:58.2]} 15... Na4 {[%clk 0:05:23.6]} 16. Bb3 {[%clk 0:05:40.9]} 16... Nb6
{[%clk 0:05:16.1]} 17. Nc4 {[%clk 0:05:40]} 17... Nxc4 {[%clk 0:05:02.3]} 18.
Bxc4 {[%clk 0:05:39.4]} 18... a5 {[%clk 0:04:50]} 19. a3 {[%clk 0:05:10.6]}
19... Rfc8 {[%clk 0:04:50.5]} 20. Qe2 {[%clk 0:04:37.4]} 20... axb4 {[%clk
0:04:38.8]} 21. axb4 {[%clk 0:04:32.8]} 21... Rxa1 {[%clk 0:04:39.4]} 22. Rxa1
{[%clk 0:04:34.7]} 22... Qd6 {[%clk 0:04:40.3]} 23. Bd2 {[%clk 0:04:02.8]} 23...
Nd5 {[%clk 0:04:32]} 24. Bxd5 {[%clk 0:03:23.7]} 24... Qxd5 {[%clk 0:04:33.9]}
25. h3 {[%clk 0:03:16.3]} 25... e5 {[%clk 0:04:28.2]} 26. Nf3 {[%clk 0:03:14.3]}
26... Bc6 {[%clk 0:03:47]} 27. Be1 {[%clk 0:03:02.4]} 27... h6 {[%clk
0:03:28.2]} 28. Rd1 {[%clk 0:02:58.8]} 28... Qe6 {[%clk 0:03:24.5]} 29. Nd2
{[%clk 0:01:31.7]} 29... Bd5 {[%clk 0:02:55.2]} 30. Nf1 {[%clk 0:01:29.7]} 30...
Bb3 {[%clk 0:02:49]} 31. Ra1 {[%clk 0:01:19.3]} 31... Bc4 {[%clk 0:02:31.1]} 32.
Qe4 {[%clk 0:01:17.8]} 32... Bd5 {[%clk 0:02:11.8]} 33. Qe2 {[%clk 0:01:17.4]}
33... Qc6 {[%clk 0:01:39.8]} 34. Ne3 {[%clk 0:01:18]} 34... Be6 {[%clk 0:01:41]}
35. Rd1 {[%clk 0:01:01.8]} 35... Kh7 {[%clk 0:01:39.9]} 36. c4 {[%clk
0:00:52.9]} 36... Qe4 {[%clk 0:01:24.1]} 37. c5 {[%clk 0:00:48.3]} 37... Ra8
{[%clk 0:01:18.1]} 38. Qd3 {[%clk 0:00:41.5]} 38... Qc6 {[%clk 0:00:50.2]} 39.
Rc1 {[%clk 0:00:36.6]} 39... Qd7 {[%clk 0:00:30.1]} 40. Qxd7 {[%clk 0:00:31.1]}
40... Bxd7 {[%clk 0:00:32]} 41. Nc4 {[%clk 0:00:28]} 41... Bc6 {[%clk
0:00:20.8]} 42. Nd6 {[%clk 0:00:20.4]} 42... Bf8 {[%clk 0:00:07.3]} 43. Nxf7
{[%clk 0:00:17.2]} 43... e4 {[%clk 0:00:08.7]} 44. Nd6 {[%clk 0:00:16.2]} 44...
Rd8 {[%clk 0:00:06.7]} 45. Bd2 {[%clk 0:00:11.3]} 45... Bxd6 {[%clk 0:00:07]}
46. cxd6 {[%clk 0:00:13.2]} 46... Rxd6 {[%clk 0:00:08.2]} 47. Be3 {[%clk
0:00:14.4]} 47... Rd5 {[%clk 0:00:07.1]} 48. Bc5 {[%clk 0:00:14.3]} 1/2-1/2

[Event "GrandPrix_30.05"]
[Site "Chess.com"]
[Date "2020.05.30"]
[Round "3"]
[White "Haykos"]
[Black "ehrenfeld"]
[Result "1-0"]
[WhiteElo "2232"]
[BlackElo "1986"]
[TimeControl "600+2"]
[EndTime "9:24:38 PDT"]
[Termination "Haykos won on time"]

1. e4 {[%clk 0:10:01.9]} 1... e5 {[%clk 0:10:00.3]} 2. Nf3 {[%clk 0:09:59.9]}
2... Nc6 {[%clk 0:10:00.9]} 3. Bc4 {[%clk 0:10:00.8]} 3... Nf6 {[%clk
0:10:01.1]} 4. d3 {[%clk 0:10:02.1]} 4... h6 {[%clk 0:10:02]} 5. c3 {[%clk
0:09:58.8]} 5... d6 {[%clk 0:10:02.5]} 6. a4 {[%clk 0:09:57.9]} 6... g5 {[%clk
0:10:01.7]} 7. a5 {[%clk 0:09:58.1]} 7... a6 {[%clk 0:10:02.4]} 8. Nbd2 {[%clk
0:09:58.4]} 8... g4 {[%clk 0:09:28.7]} 9. Ng1 {[%clk 0:09:44.5]} 9... Bg7 {[%clk
0:09:26.7]} 10. Ne2 {[%clk 0:09:43.9]} 10... O-O {[%clk 0:09:13.8]} 11. O-O
{[%clk 0:09:20.3]} 11... d5 {[%clk 0:07:27.9]} 12. exd5 {[%clk 0:07:38]} 12...
Nxd5 {[%clk 0:07:28]} 13. Ne4 {[%clk 0:07:38.2]} 13... Kh8 {[%clk 0:07:05.2]}
14. Qb3 {[%clk 0:07:34]} 14... Nce7 {[%clk 0:06:58.5]} 15. f4 {[%clk 0:07:25]}
15... f5 {[%clk 0:06:39.1]} 16. N4g3 {[%clk 0:05:53.4]} 16... exf4 {[%clk
0:06:01.3]} 17. Nxf4 {[%clk 0:05:44.9]} 17... Nxf4 {[%clk 0:05:56.9]} 18. Bxf4
{[%clk 0:05:46.8]} 18... Ng6 {[%clk 0:05:55.7]} 19. Nh5 {[%clk 0:05:20.4]} 19...
Nxf4 {[%clk 0:05:22]} 20. Nxf4 {[%clk 0:05:22.3]} 20... Qd6 {[%clk 0:05:22.9]}
21. Rae1 {[%clk 0:05:08.7]} 21... Bd7 {[%clk 0:05:10.5]} 22. Be6 {[%clk
0:05:04.7]} 22... Kh7 {[%clk 0:04:32.4]} 23. d4 {[%clk 0:03:58]} 23... Bb5
{[%clk 0:03:41.9]} 24. Rf2 {[%clk 0:02:48.9]} 24... Rae8 {[%clk 0:03:41.5]} 25.
Nh5 {[%clk 0:02:11]} 25... f4 {[%clk 0:03:21.1]} 26. Qc2+ {[%clk 0:01:21.4]}
26... Kh8 {[%clk 0:03:18.1]} 27. Qg6 {[%clk 0:01:22.6]} 27... Qe7 {[%clk
0:02:26.8]} 28. Qxg4 {[%clk 0:01:21.6]} 28... Qg5 {[%clk 0:02:19.6]} 29. Qh3
{[%clk 0:00:34.6]} 29... Bc4 {[%clk 0:00:41.8]} 30. Nxg7 {[%clk 0:00:35.4]}
30... Kxg7 {[%clk 0:00:42.2]} 31. Re5 {[%clk 0:00:35.8]} 31... Qxe5 {[%clk
0:00:29.9]} 32. dxe5 {[%clk 0:00:35.9]} 32... Rxe6 {[%clk 0:00:28.7]} 33. Qg4+
{[%clk 0:00:22]} 33... Rg6 {[%clk 0:00:29.3]} 34. Qf3 {[%clk 0:00:16.5]} 34...
c6 {[%clk 0:00:27.9]} 35. Qe4 {[%clk 0:00:12]} 35... Bd5 {[%clk 0:00:26.5]} 36.
Qd4 {[%clk 0:00:13.5]} 36... Kh7 {[%clk 0:00:23.6]} 37. c4 {[%clk 0:00:13.8]}
37... Be6 {[%clk 0:00:17.6]} 38. Rxf4 {[%clk 0:00:15.1]} 38... Rfg8 {[%clk
0:00:16.5]} 39. g3 {[%clk 0:00:15.9]} 39... R8g7 {[%clk 0:00:15.2]} 40. Rf6
{[%clk 0:00:16.9]} 40... Rg4 {[%clk 0:00:14.5]} 41. Qe3 {[%clk 0:00:17.9]} 41...
Bxc4 {[%clk 0:00:12.3]} 42. Rxh6+ {[%clk 0:00:18.4]} 42... Kg8 {[%clk
0:00:12.5]} 43. Qd2 {[%clk 0:00:19.4]} 43... Bd5 {[%clk 0:00:12.5]} 44. Qf2
{[%clk 0:00:18.7]} 44... Rf7 {[%clk 0:00:11.9]} 45. Qe2 {[%clk 0:00:16.8]} 45...
Ra4 {[%clk 0:00:10.1]} 46. Rf6 {[%clk 0:00:15.6]} 46... Ra1+ {[%clk 0:00:10]}
47. Kf2 {[%clk 0:00:17.2]} 47... Rg7 {[%clk 0:00:06.9]} 48. e6 {[%clk
0:00:18.7]} 48... Rh1 {[%clk 0:00:06.7]} 49. Ke3 {[%clk 0:00:16.5]} 49... Rg5
{[%clk 0:00:02.1]} 50. Kf4 {[%clk 0:00:17.1]} 1-0